[Event "Fagernes Chess GM-Swiss 2025"]
[Site "Fagernes"]
[Date "2025.04.15"]
[Round "3.5"]
[White "Kantor, Gergely"]
[Black "Vijayakumar, Rishi"]
[Result "1/2-1/2"]
[Annotator "TA"]
[ECO "C78"]
[WhiteElo "2578"]
[BlackElo "2317"]
[PlyCount "166"]
[EventDate "2025.04.12"]
[EventCountry "NOR"]
[SourceTitle "playchess.com"]
[Source "ChessBase"]
[SourceQuality "1"]
[TimeControl "40/6000+30:2400+30"]

{[%evp 17,166,40,38,0,21,9,28,0,15,0,0,0,0,0,0,-35,-21,-37,76,73,106,5,325,64,104,61,118,61,52,0,0,0,101,82,105,101,54,55,86,50,94,24,25,25,31,26,46,44,43,51,41,52,102,31,34,18,17,17,17,17,17,18,23,20,155,155,155,155,155,155,155,12,33,33,33,33,33,0,43,47,47,47,47,47,55,62,58,109,120,120,128,128,189,189,189,189,189,189,189,189,189,155,0,0,0,38,52,52,52,43,251,251,251,251,251,251,251,251,251,251,251,251,251,251,251,251,251,251,251,251,251,0,29984,0,0,0,0,0,0,0,0,0,0,0,0,0,0,0,0,0,0]} 1. e4 {[%emt 0:00:03]} e5 {[%emt 0:01:25]} 2. Nf3 {[%emt 0:00:02]} Nc6 {[%emt 0:00:06]} 3. Bb5 {[%emt 0:00:03]} a6 {[%emt 0:00:12]} 4. Ba4 {[%emt 0:00:03]} Nf6 {[%emt 0:01:01]} 5. O-O {[%emt 0:00:05]} b5 {[%emt 0:00:05]} 6. Bb3 {[%emt 0:00:03]} Bc5 {[%emt 0:00:10]} 7. c3 {[%emt 0:00:07]} d6 {[%emt 0:00:05]} 8. a4 {[%emt 0:00:03]} Rb8 {[%emt 0:00:07]} 9. d4 {[%emt 0:00:03]} Bb6 {[%emt 0:00:11]} 10. a5 $1 {[%emt 0:00:40] 10.a5 is better than 10.axb5. C78: Ruy Lopez: Archangelsk and Möller Defences.} Ba7 {[%emt 0:00:08]} 11. h3 {[%emt 0:00:04]} Bb7 {[%emt 0:00:07]} 12. Re1 {[%emt 0:00:05] White has an edge.} O-O {[%emt 0:00:21]} 13. Be3 {[%emt 0:00:06]} exd4 $1 {[%emt 0:00:51]} (13... Nxe4 $6 14. d5 $16) 14. cxd4 {[%emt 0:00:05]} Nb4 {[%emt 0:00:05]} (14... Nxe4 $2 15. d5 $18) 15. Nc3 {[%emt 0:00:18]} Bxe4 {[%emt 0:00:16]} (15... Nxe4 16. Nxe4 Bxe4 17. Bd2 Bxf3 18. Qxf3 $16) 16. Nxe4 {[%emt 0:00:07] White sacrificed a pawn} (16. Bg5 $5 Bg6 17. Qd2 $15) 16... Nxe4 {[%emt 0:00:04]} 17. Rc1 $146 {[%emt 0:00:09]} (17. d5 Bc5 18. Bd4 Re8 19. Re3 Qd7 20. Rc1 Re7 21. Qe2 Rbe8 22. Re1 Kf8 23. Bc2 {0-1 Swiercz,D (2652)-Yoo,C (2563) USA-ch Saint Louis 2022 (13)}) 17... d5 {[%emt 0:00:43]} (17... Rc8 $15 {stays ahead.}) 18. Ne5 $1 $16 {[%emt 0:04:37][%mdl 1024] White has strong compensation.} Qd6 {[%emt 0:40:01]} 19. Bf4 {[%emt 0:29:14]} (19. f3 $1 $16 {[%cal Rf3e4]} Nf6 20. Bf4) 19... Rbd8 $2 {[%emt 0:14:02][%mdl 8192]} (19... Rbe8 $11 {and Black has nothing to worry.}) 20. f3 $2 {[%emt 0:29:30]} (20. Rxe4 $1 $18 dxe4 21. Bxf7+ (21. Nxf7 Qxf4 22. Nxd8+ Kh8 $15) 21... Rxf7 (21... Kh8 $2 22. Qh5 $18) 22. Nxf7 Qxf4 23. Nxd8 Bxd4 24. Qb3+ Kh8 25. Rf1 (25. Nf7+ Kg8 $18)) 20... Qf6 {[%emt 0:04:16]} 21. Be3 {[%emt 0:08:19][%cal Bf4e3,Be3f2,Bf2h4][%mdl 32] This pair of bishops is nice.} (21. fxe4 Qxf4 22. Kh1 (22. Rxc7 $2 Qxe5 23. Rxa7 Qb8 $19) 22... c5 $17 (22... dxe4 $2 23. Rf1 $18)) 21... Ng3 {[%emt 0:07:23]} (21... Nc5 $2 22. Ng4 (22. Rxc5 Bxc5 23. Ng4 Qf5 $16) 22... Qf5 23. dxc5 $18 (23. Rxc5 Bxc5 24. dxc5 Rfe8 $16)) (21... Nd6 $14) 22. Rxc7 {[%emt 0:09:32]} (22. Qd2 $1 $16 {[%cal Oc1c7] Hoping for Rxc7!.} c5 23. dxc5 Qxe5 24. Bf2) 22... Bb8 $14 {[%emt 0:00:46]} 23. Rd7 {[%emt 0:03:44]} (23. Rb7 $14 Nf5 24. Bf2) 23... Nf5 $1 $11 {[%emt 0:02:52][%cal Bg3f5,Bf5g7,Bg7e8,Be8c7][%mdl 32]} 24. Bf2 {[%emt 0:03:07]} g6 {[%emt 0:10:01]} (24... Qe6 $11 25. Rxd8 Rxd8) 25. f4 {[%emt 0:05:59]} (25. Qd2 {looks sharper.} Nc6 26. Bxd5 Bxe5 27. dxe5 Nxe5 28. Rxd8 Rxd8 29. Rxe5 Qxe5 30. Bxf7+ Kxf7 31. Qxd8 Qd6 32. Qa8) 25... Qe6 {[%emt 0:05:41]} 26. Rxd8 {[%emt 0:05:07]} Rxd8 {[%emt 0:00:01]} 27. g4 {[%emt 0:00:12]} Ng7 {[%emt 0:02:22]} 28. Bh4 {[%emt 0:00:34]} Re8 {[%emt 0:04:32]} 29. Nd3 {[%emt 0:02:13]} (29. Qd2 $1 $16 {[%cal Rd2b4]} Qd6 30. f5) 29... Qd6 {[%emt 0:00:08]} 30. Rxe8+ {[%emt 0:00:18]} Nxe8 {[%emt 0:00:01]} 31. Qe2 {[%emt 0:00:36]} Kf8 {[%emt 0:01:35] [#]} 32. Be7+ $1 {[%emt 0:02:51]} Qxe7 {[%emt 0:00:17]} 33. Qxe7+ {[%emt 0:00:01]} Kxe7 {[%emt 0:00:01]} 34. Nxb4 $14 {[%emt 0:00:04][%mdl 4096] Endgame KBN-KBN} Kd6 {[%emt 0:04:24] Dodges Nc6} (34... Kd7 $14) 35. Nxd5 {[%emt 0:01:00] White is more active.} (35. Nxa6 Ba7 $14) (35. Bxd5 $16 Ba7 36. Bxf7 Bxd4+ 37. Kg2) 35... Nc7 {[%emt 0:00:57]} (35... Ba7 $2 36. Nb6 Bxb6 37. axb6 $18) 36. Nc3 {[%emt 0:02:56]} Ne6 {[%emt 0:03:06]} 37. Ne4+ {[%emt 0:01:50]} Ke7 {[%emt 0:00:57]} 38. Bxe6 {[%emt 0:00:14]} fxe6 $11 {[%emt 0:03:03] KB-KN. White is a pawn up.} 39. b4 {[%emt 0:00:43]} Bxf4 {[%emt 0:00:08]} 40. Kf2 {[%emt 0:00:03] Prevents Be3+} e5 {[%emt 0:05:45]} (40... Bd6 $11 41. Nc5 (41. Nxd6 $2 Kxd6 42. Ke3 Kd5 $19) 41... e5) 41. Kf3 $16 {[%emt 0:20:46]} Bc1 {[%emt 0:03:56]} 42. Nc5 $1 {[%emt 0:00:23]} (42. dxe5 Ba3 43. Nc5 Bxb4 44. Nxa6 Bxa5 $11) 42... exd4 {[%emt 0:01:26]} 43. Nxa6 {[%emt 0:00:44]} Bd2 {[%emt 0:09:08]} 44. Ke4 {[%emt 0:00:27]} (44. Ke2 $1 $16 {[%cal Re2d2]} Bc3 45. Nc7) 44... Kd6 $1 $11 {[%emt 0:01:36]} 45. Kxd4 {[%emt 0:05:51]} Be1 {[%emt 0:03:38]} 46. Ke4 {[%emt 0:02:27]} Bd2 {[%emt 0:00:10]} 47. h4 {[%emt 0:01:42]} Be1 {[%emt 0:01:06]} 48. h5 {[%emt 0:01:25]} gxh5 {[%emt 0:01:32]} 49. gxh5 {[%emt 0:00:04]} h6 {[%emt 0:00:37]} 50. Kf5 {[%emt 0:02:15]} Bf2 {[%emt 0:05:07]} 51. Kg6 {[%emt 0:01:39]} Be3 {[%emt 0:01:46]} 52. Kf7 {[%emt 0:00:34]} (52. Nc5 Bxc5 53. bxc5+ Kxc5 $11) (52. Kf6 $14) 52... Kd7 $16 {[%emt 0:02:47]} 53. Nc5+ {[%emt 0:02:16]} Bxc5 {[%emt 0:00:03]} 54. bxc5 {[%emt 0:00:02] K3P-KPP. White is a pawn up.} b4 {[%emt 0:00:08]} 55. a6 $1 {[%emt 0:00:03]} Kc7 {[%emt 0:01:25]} 56. a7 {[%emt 0:00:44]} Kb7 {[%emt 0:00:01] [#]} 57. c6+ $1 {[%emt 0:01:14][%mdl 512]} Kxa7 $18 {[%emt 0:00:02] ( -> ...Kb6). KPP-KPP} 58. Ke7 {[%emt 0:01:09]} (58. c7 $2 Kb7 59. Kg6 b3 (59... Kxc7 $2 60. Kxh6 b3 61. Kg7 $19) 60. Kxh6 b2 $19 (60... Kxc7 $2 61. Kg7 $19)) 58... b3 {[%emt 0:00:09] [#]} 59. c7 $1 {[%emt 0:00:01]} b2 {[%emt 0:00:07]} (59... Kb7 60. Kd7 Kb6 61. c8=Q (61. c8=B $2 b2 $19) 61... Kb5 62. Qc3 b2 63. Qxb2+ Kc4 64. Qd2) 60. c8=Q {[%emt 0:00:04]} (60. c8=B $2 b1=Q (60... b1=R 61. Kf6 $15) 61. Be6 Qb4+ 62. Kf6 Qh4+ 63. Ke5 Qxh5+ 64. Bf5 Kb6 $19) 60... b1=Q $11 {[%emt 0:00:19] KQ-KQ Against Qc2} 61. Qc7+ {[%emt 0:00:20]} Ka8 $1 {[%emt 0:00:51]} 62. Qc6+ {[%emt 0:01:01]} Kb8 $1 {[%emt 0:03:42]} 63. Qd6+ {[%emt 0:03:33]} Ka8 $2 {[%emt 0:01:22]} (63... Kb7 $14) 64. Qxh6 $18 {[%emt 0:05:42]} Qb7+ {[%emt 0:00:58]} 65. Kf8 {[%emt 0:00:12]} Qc8+ {[%emt 0:00:12]} 66. Kg7 {[%emt 0:00:06]} Qd7+ {[%emt 0:00:22]} 67. Kg8 {[%emt 0:00:08]} Qd5+ {[%emt 0:00:28]} 68. Kh8 {[%emt 0:00:23]} Qe5+ {[%emt 0:02:34]} 69. Kh7 {[%emt 0:00:14]} Qf5+ {[%emt 0:03:43]} 70. Qg6 {[%emt 0:00:27]} Qd7+ {[%emt 0:00:13]} 71. Kh8 {[%emt 0:00:30] Threatening mate with Qg8+.} Qd4+ {[%emt 0:00:31]} 72. Qg7 {[%emt 0:00:14]} Qe3 {[%emt 0:00:40]} 73. h6 {[%emt 0:01:02]} ({Not} 73. Qa1+ Kb8 $16) 73... Qf4 {[%emt 0:00:46] Dodges Qf8+} 74. h7 $2 {[%emt 0:02:40]} (74. Qg8+ $18 Kb7 75. Qd5+ Kb8 76. Qd8+ Ka7 77. Qe7+ Kb8 78. Qe6) 74... Qe4 $2 {[%emt 0:00:56][%mdl 8192]} ({Inferior is} 74... Qb8+ 75. Qg8 Kb7 76. Qxb8+ Kxb8 77. Kg8 Kc8 78. h8=Q (78. h8=R Kd7 79. Rh6 Ke7 80. Rg6 Kd7 81. Kf8 Kc8 82. Ke7 Kc7) 78... Kd7 79. Qe5) (74... Qf3 $11) 75. Kg8 $2 {[%emt 0:01:29]} (75. Qf8+ {mates} Ka7 76. Kg8 Kb6 77. h8=Q (77. h8=R Qg2+ 78. Qg7 Qa8+ 79. Kh7 Qh1+ 80. Qh6+ Qxh6+ 81. Kxh6 Kc5 $18) 77... Qd5+ 78. Qf7 Qg2+ 79. Kf8 Qa8+ 80. Kg7) 75... Qd5+ $11 {[%emt 0:00:58] The position is equal.} 76. Qf7 {[%emt 0:00:19]} (76. Kh8 $5 Qf3 $8 77. Qa1+ Kb7 78. Qb2+ Kc8 79. Qc2+ Kb8 80. Qg6 $18) 76... Qg5+ {[%emt 0:00:03]} 77. Kf8 {[%emt 0:00:17]} Qc5+ {[%emt 0:00:35]} 78. Qe7 {[%emt 0:01:10]} Qf5+ {[%emt 0:00:06]} 79. Ke8 {[%emt 0:00:41]} Qh5+ {[%emt 0:00:49]} 80. Qf7 {[%emt 0:00:17]} Qb5+ {[%emt 0:00:25]} 81. Kf8 {[%emt 0:00:26]} Qc5+ {[%emt 0:00:22]} 82. Kg7 {[%emt 0:00:29]} (82. Ke8 $5 Qc8+ $8 83. Ke7 Qc5+ 84. Kd8 Qc8+ 85. Ke7 $11) 82... Qg5+ {[%emt 0:00:45]} 83. Kf8 {[%emt 0:00:27]} Qc5+ {[%emt 0:00:50] Black defended with fortune.   Weighted Error Value: White=0.24 (precise) /Black=0.26 (precise)   Loses game:     	---       	Black=3      Missed win:     	White=3     	---        Mistake:       	White=7     	Black=5      Inaccurate:     	White=4     	Black=3      OK:         	White=23    	Black=28     Best:        	White=9     	Black=9      Strong:       	White=4     	Black=5      Brilliant:      	White=1     	---} 1/2-1/2

[Event "Fagernes Chess GM-Swiss 2025"]
[Site "Fagernes"]
[Date "2025.04.15"]
[Round "3.6"]
[White "Csonka, Balazs"]
[Black "Ghosh, Diptayan"]
[Result "1/2-1/2"]
[Annotator "TA"]
[ECO "E36"]
[WhiteElo "2459"]
[BlackElo "2573"]
[PlyCount "27"]
[EventDate "2025.04.12"]
[EventCountry "NOR"]
[SourceTitle "playchess.com"]
[Source "ChessBase"]
[SourceQuality "1"]
[TimeControl "40/6000+30:2400+30"]

{[%evp 13,27,0,0,0,8,0,11,5,0,5,5,0,0,0,0,0]} 1. d4 {[%emt 0:00:04]} Nf6 {[%emt 0:02:00]} 2. c4 {[%emt 0:00:12]} e6 {[%emt 0:00:06]} 3. Nc3 {[%emt 0:00:06]} Bb4 {[%emt 0:00:08]} 4. Qc2 {[%emt 0:00:12]} d5 {[%emt 0:01:00]} 5. a3 {[%emt 0:05:55]} Bxc3+ {[%emt 0:00:33]} 6. Qxc3 {[%emt 0:00:09]} O-O {[%emt 0:00:29]} 7. Nf3 {[%emt 0:00:27]} Nbd7 {[%emt 0:01:23][%cal Bb8d7,Bd7f6,Bf6d5][%mdl 32] The position is equal.} 8. Bg5 {[%emt 0:09:04]} h6 {[%emt 0:00:29]} 9. Bxf6 {[%emt 0:00:40]} Nxf6 {[%emt 0:00:58]} 10. e3 {[%emt 0:00:18]} b6 {[%emt 0:08:35]} 11. cxd5 {[%emt 0:16:47]} Nxd5 {[%emt 0:03:13]} 12. Qb3 {[%emt 0:07:17]} Bb7 {[%emt 0:05:24]} 13. Be2 {[%emt 0:01:21]} Rc8 {[%emt 0:02:50]} 14. O-O {[%emt 0:01:02] A rather calm draw.   Weighted Error Value: White=0.02 (flawless) /Black=0.00 (flawless) .  OK:         	White=3     	Black=3} 1/2-1/2

[Event "Fagernes Chess GM-Swiss 2025"]
[Site "Fagernes"]
[Date "2025.04.15"]
[Round "3.7"]
[White "Gopal G.N."]
[Black "Moksh Amit Doshi"]
[Result "0-1"]
[Annotator "RC"]
[ECO "C55"]
[WhiteElo "2556"]
[BlackElo "2369"]
[PlyCount "102"]
[EventDate "2025.04.12"]
[EventCountry "NOR"]
[SourceTitle "playchess.com"]
[Source "ChessBase"]
[SourceQuality "1"]
[TimeControl "40/6000+30:2400+30"]

1. e4 {[%emt 0:00:03]} e5 {[%emt 0:02:57]} 2. Nf3 {[%emt 0:00:05]} Nc6 {[%emt 0:00:06]} 3. Bb5 {[%emt 0:00:09]} a6 {[%emt 0:00:06]} 4. Ba4 {[%emt 0:00:04]} Nf6 {[%emt 0:00:10]} 5. O-O {[%emt 0:00:10]} Be7 {[%emt 0:00:05]} 6. d3 {[%emt 0:00:46]} b5 {[%emt 0:00:08]} 7. Bb3 {[%emt 0:00:03]} d6 {[%emt 0:00:08]} 8. c3 {[%emt 0:01:33]} O-O {[%emt 0:00:36]} 9. h3 {[%emt 0:00:05]} Na5 {[%emt 0:00:41]} 10. Bc2 {[%emt 0:00:15]} c5 {[%emt 0:00:13]} 11. d4 {[%emt 0:12:12]} d5 {[%emt 0:00:20]} 12. dxe5 {[%emt 0:12:40]} Nxe4 {[%emt 0:00:16]} 13. Nbd2 {[%emt 0:02:40]} Bf5 {[%emt 0:02:13]} 14. Re1 {[%emt 0:07:08]} Nc6 {[%emt 0:00:11]} 15. a4 {[%emt 0:21:06]} b4 {[%emt 0:10:36]} 16. c4 {[%emt 0:02:02]} Nxd2 {[%emt 0:07:27]} 17. Bxd2 {[%emt 0:00:44]} Bg6 {[%emt 0:11:19]} 18. Bxg6 {[%emt 0:24:50]} hxg6 {[%emt 0:01:38]} 19. Qc2 {[%emt 0:00:17]} d4 {[%emt 0:15:18]} 20. Qd3 {[%emt 0:00:11]} Qd7 {[%emt 0:05:08]} 21. Re4 {[%emt 0:03:18]} Rae8 {[%emt 0:06:55]} 22. Rae1 {[%emt 0:00:21]} Bd8 {[%emt 0:00:22]} 23. e6 {[%emt 0:12:35]} fxe6 {[%emt 0:09:11]} 24. Rg4 {[%emt 0:00:04]} Rf6 {[%emt 0:07:51]} 25. Rxg6 {[%emt 0:00:42]} Rxg6 {[%emt 0:02:32]} 26. Qxg6 {[%emt 0:00:02]} Bf6 {[%emt 0:02:25]} 27. Qd3 {[%emt 0:03:46]} e5 {[%emt 0:01:53]} 28. g4 {[%emt 0:04:27]} Na5 {[%emt 0:07:02]} 29. Re4 {[%emt 0:02:10]} g6 {[%emt 0:05:04]} 30. b3 {[%emt 0:00:28]} Nb7 {[%emt 0:00:13]} 31. Re1 {[%emt 0:00:30]} Qf7 {[%emt 0:00:57]} 32. Qe4 {[%emt 0:00:28]} Nd6 {[%emt 0:06:58]} 33. Qc6 {[%emt 0:00:06]} Qb7 {[%emt 0:00:23]} 34. Qxd6 {[%emt 0:00:51]} Qxf3 {[%emt 0:00:04]} 35. g5 {[%emt 0:00:24]} Bg7 {[%emt 0:00:46]} 36. Qxg6 {[%emt 0:00:44]} Rf8 {[%emt 0:01:10]} 37. Qe6+ {[%emt 0:00:26]} Kh8 {[%emt 0:00:09]} 38. Rf1 {[%emt 0:00:32]} Qe2 {[%emt 0:02:42]} 39. Bc1 {[%emt 0:00:29]} e4 {[%emt 0:01:15]} 40. g6 {[%emt 0:00:32]} e3 {[%emt 0:01:59]} 41. f3 {[%emt 0:07:22]} Qc2 {[%emt 0:08:48]} 42. Qg4 {[%emt 0:11:44]} Rf5 {[%emt 0:11:53]} 43. Qh4+ {[%emt 0:01:41]} Kg8 {[%emt 0:00:06]} 44. Qd8+ {[%emt 0:01:05]} Bf8 {[%emt 0:00:07]} 45. Qh4 {[%emt 0:01:25]} Kg7 {[%emt 0:04:44]} 46. Qh7+ {[%emt 0:01:00]} Kf6 {[%emt 0:00:06]} 47. Qf7+ {[%emt 0:16:13]} Kg5 {[%emt 0:05:16]} 48. Qh7 {[%emt 0:02:08]} Bd6 {[%emt 0:05:55]} 49. h4+ {[%emt 0:00:45]} Kf4 {[%emt 0:00:16]} 50. Qd7 {[%emt 0:01:30]} Kg3 {[%emt 0:01:28]} 51. Qxd6+ {[%emt 0:00:02]} Kh3 {[%emt 0:00:01]} 0-1

[Event "Fagernes Chess GM-Swiss 2025"]
[Site "Fagernes"]
[Date "2025.04.15"]
[Round "3.8"]
[White "Makhnev, Denis"]
[Black "Mitusov, Semen"]
[Result "1-0"]
[Annotator "TA"]
[ECO "A47"]
[WhiteElo "2537"]
[BlackElo "2459"]
[PlyCount "77"]
[EventDate "2025.04.12"]
[EventCountry "NOR"]
[SourceTitle "playchess.com"]
[Source "ChessBase"]
[SourceQuality "1"]
[TimeControl "40/6000+30:2400+30"]

{[%evp 11,77,0,4,9,10,10,16,0,18,5,12,10,10,5,6,0,29,0,37,0,22,0,29,15,32,16,66,17,70,30,100,31,56,41,71,60,72,62,77,54,60,58,111,103,114,116,108,123,377,84,136,140,155,102,102,23,19,20,83,50,289,283,276,267,514,514,581,579]} 1. Nf3 {[%emt 0:02:16]} Nf6 {[%emt 0:01:06]} 2. e3 {[%emt 0:00:17]} b6 {[%emt 0:03:28]} 3. d4 {[%emt 0:02:08]} Bb7 {[%emt 0:00:08]} 4. Bd3 {[%emt 0:02:13]} e6 {[%emt 0:00:38]} 5. O-O {[%emt 0:01:16]} c5 {[%emt 0:02:14]} 6. b3 {[%emt 0:00:59]} Nc6 {[%emt 0:01:43]} 7. Bb2 {[%emt 0:05:55]} Rc8 {[%emt 0:02:48]} 8. a3 {[%emt 0:05:00]} d5 {[%emt 0:02:00]} 9. Nbd2 {[%emt 0:00:32] The position is equal.} Bd6 {[%emt 0:01:28]} 10. Qe2 {[%emt 0:18:49]} cxd4 {[%emt 0:16:14]} 11. exd4 {[%emt 0:00:21]} O-O {[%emt 0:00:45]} 12. Ne5 {[%emt 0:01:05]} Ne7 {[%emt 0:01:18]} 13. f4 {[%emt 0:02:35]} Rc7 {[%emt 0:03:11]} 14. Rae1 {[%emt 0:05:53]} Qa8 {[%emt 0:04:34][%cal Of6e4]} 15. Rf2 {[%emt 0:00:58]} Ng6 {[%emt 0:23:00]} 16. h3 {[%emt 0:26:19]} Rfc8 {[%emt 0:06:24][%cal Of6e4]} 17. c4 {[%emt 0:05:09]} Re8 {[%emt 0:14:11]} 18. g3 {[%emt 0:06:31]} Nf8 {[%emt 0:03:30]} (18... Qd8 $11) 19. Qe3 {[%emt 0:07:15]} (19. g4 $14) 19... N6d7 {[%emt 0:02:49]} (19... Qd8 $11) 20. Kh2 {[%emt 0:00:52]} a6 {[%emt 0:03:12]} (20... Qc8 $11) 21. Rfe2 {[%emt 0:00:50]} (21. b4 $1 $16) 21... Rcc8 {[%emt 0:00:31]} 22. Qf2 {[%emt 0:00:39]} Re7 {[%emt 0:02:13]} 23. b4 {[%emt 0:02:06]} dxc4 {[%emt 0:01:00]} 24. Nexc4 {[%emt 0:00:05][%cal Be5c4,Bc4e3,Be3f5][%mdl 32]} Bc7 {[%emt 0:01:41] [#]} 25. d5 $1 {[%emt 0:00:07]} Bxd5 {[%emt 0:00:55]} 26. Ne3 {[%emt 0:00:06]} b5 {[%emt 0:08:52] [#]} (26... e5 $14) 27. Nf5 $1 $16 {[%emt 0:03:21][%mdl 512]} exf5 {[%emt 0:00:07]} 28. Rxe7 {[%emt 0:00:09]} Bb6 {[%emt 0:00:58]} 29. Qe2 {[%emt 0:01:16] White is much more active.} Be6 {[%emt 0:00:44][%mdl 8192]} (29... g6 $16) 30. Nf3 $2 {[%emt 0:00:04]} (30. Bxf5 $18 Qd5 (30... Bxf5 $2 {perishes.} 31. Rxf7 Ne6 32. Rxf5 $18) 31. Bxe6 Nxe6 32. f5) 30... Qd5 {[%emt 0:01:20]} (30... Bd8 $142 31. Re8 Nf6 32. Bxf6 Bxf6 33. Rxc8 Qxc8) 31. Ng5 {[%emt 0:00:34] Rd1 is the strong threat.} Qd6 {[%emt 0:01:41]} 32. Nxe6 {[%emt 0:01:11]} (32. Rxe6 $142 $1 Nxe6 33. Bxf5) 32... Nxe6 {[%emt 0:00:23] [#]} 33. Rxd7 {[%emt 0:01:23][%mdl 512]} Qxd7 $11 {[%emt 0:00:02]} 34. Bxf5 {[%emt 0:00:06][%cal Oe1d1]} Rc4 {[%emt 0:01:45]} (34... Rd8 $11 {keeps the balance.}) 35. h4 $40 {[%emt 0:01:02][%cal Rf5e6][%mdl 128] Black needs to defend precisely.} ({But not} 35. Bxe6 fxe6 36. Qxe6+ Qxe6 37. Rxe6 Rc2+ 38. Kh1 Rxb2 $14) 35... Bd4 $2 {[%emt 0:00:33]} ({Black should play} 35... Rc6 $1 $14) 36. Bxe6 {[%emt 0:00:22]} fxe6 {[%emt 0:00:25] [#]} 37. Rd1 $1 {[%emt 0:01:57]} ({Less strong is} 37. Bxd4 Rxd4 38. Qxe6+ Qxe6 39. Rxe6 a5 $14) 37... Qd5 $2 {[%emt 0:00:26]} (37... Qd6 {might work better.} 38. h5 Qb6 39. Rxd4 Rxd4) 38. Rd2 $18 {[%emt 0:01:18]} e5 {[%emt 0:00:40]} 39. fxe5 {[%emt 0:00:20] Weighted Error Value: White=0.32/Black=0.48.  Loses game:     	---       	Black=2      Missed win:     	White=1     	---        Mistake:       	White=4     	Black=7      Inaccurate:     	White=4     	Black=4      OK:         	White=6     	Black=7      Best:        	White=5     	---        Strong:       	White=1     	---        Brilliant:      	White=1     	---} 1-0

[Event "Fagernes Chess GM-Swiss 2025"]
[Site "Fagernes"]
[Date "2025.04.15"]
[Round "3.9"]
[White "Ghasi, Ameet K"]
[Black "Lund, Gunnar"]
[Result "1-0"]
[Annotator "TA"]
[ECO "A92"]
[WhiteElo "2502"]
[BlackElo "2341"]
[PlyCount "63"]
[EventDate "2025.04.12"]
[EventCountry "NOR"]
[SourceTitle "playchess.com"]
[Source "ChessBase"]
[SourceQuality "1"]
[TimeControl "40/6000+30:2400+30"]

{[%evp 19,63,40,31,28,22,30,38,14,6,0,10,10,0,0,0,0,12,11,55,58,54,39,53,53,48,48,54,36,29,22,39,18,36,36,68,70,216,196,219,230,214,203,900,886,29998,29999]} 1. c4 {[%emt 0:05:02]} Nf6 {[%emt 0:01:01]} 2. Nf3 {[%emt 0:00:32]} e6 {[%emt 0:00:36]} 3. g3 {[%emt 0:00:56]} d5 {[%emt 0:00:39]} 4. Bg2 {[%emt 0:01:19]} Be7 {[%emt 0:00:28]} 5. O-O {[%emt 0:00:46]} O-O {[%emt 0:00:21]} 6. d4 {[%emt 0:02:09]} c6 {[%emt 0:04:35]} 7. Qc2 {[%emt 0:05:00]} Ne4 {[%emt 0:09:53]} 8. Nbd2 {[%emt 0:07:29]} f5 {[%emt 0:01:15]} 9. Ne5 {[%emt 0:02:32]} Nd7 {[%emt 0:13:05][%cal Bb8d7,Bd7b6,Bb6d5][%mdl 32]} 10. Nd3 {[%emt 0:03:48]} Bf6 {[%emt 0:28:44]} 11. Nf3 {[%emt 0:02:10] A92: Classical Dutch: Classical Stonewall (with ...Be7): Early deviations.} dxc4 {[%emt 0:05:05]} 12. Qxc4 {[%emt 0:15:42]} Nb6 {[%emt 0:00:50]} 13. Qb4 {[%emt 0:01:52] White is slightly better.} a5 {[%emt 0:04:52]} 14. Qe1 $146 {[%emt 0:08:35]} (14. Qb3 a4 15. Qd1 a3 16. Qb3 axb2 17. Bxb2 Na4 18. Rfc1 c5 19. Ba3 Bxd4 20. Nxd4 Qxd4 {0-1 Kiriakov,P (2553)-Muhammad,S (2365) North American op 2003 (4)}) 14... Bxd4 {[%emt 0:03:06]} 15. Nxd4 {[%emt 0:00:29]} Qxd4 {[%emt 0:00:08]} 16. Be3 {[%emt 0:00:08][%cal Bc1e3,Be3d4,Bd4c5,Bc5e7][%mdl 32]} Qd8 {[%emt 0:00:17]} 17. Rd1 {[%emt 0:01:05]} Nd5 {[%emt 0:02:21]} 18. Bd4 {[%emt 0:01:15]} Qc7 {[%emt 0:16:12]} 19. f3 {[%emt 0:02:12]} Nef6 {[%emt 0:00:45][%cal Od5b4]} 20. e4 {[%emt 0:17:24]} Nb4 {[%emt 0:01:08]} 21. Nxb4 {[%emt 0:02:15]} axb4 {[%emt 0:00:06]} 22. Qxb4 {[%emt 0:01:24]} e5 {[%emt 0:01:55]} 23. Bc5 {[%emt 0:07:29]} Re8 {[%emt 0:00:14]} 24. a3 {[%emt 0:00:47]} Qf7 {[%emt 0:01:39]} 25. Rd2 {[%emt 0:04:52]} fxe4 {[%emt 0:00:51]} (25... Be6 {simplifies} 26. Qc3 Qc7 27. Rfd1 fxe4 28. fxe4 Nd7) 26. fxe4 {[%emt 0:00:13]} Qh5 {[%emt 0:00:06]} 27. Be7 {[%emt 0:01:18] White is more active. This pair of bishops is nice.} Ng4 {[%emt 0:07:39] Loses the game.} (27... Qf7 $14 28. Bxf6 gxf6) 28. h3 {[%emt 0:04:28]} Nh6 {[%emt 0:00:05] [#]} 29. Qb3+ $1 $40 {[%emt 0:02:14][%mdl 128] White has strong attack. Black is weak on the dark squares} Kh8 {[%emt 0:01:03][%cal Oc8h3]} 30. g4 {[%emt 0:00:29]} Qg6 {[%emt 0:00:20]} (30... Bxg4 31. hxg4 Nxg4) 31. Rd6 $18 {[%emt 0:00:37]} Rxe7 {[%emt 0:02:04]} 32. Rf8+ {[%emt 0:00:09] Weighted Error Value: White=0.07 (flawless) /Black=0.67  Mistake:       	---       	Black=2      Inaccurate:     	---       	Black=3      OK:         	White=5     	Black=6      Best:        	White=4     	Black=2      Strong:       	White=1     	---} 1-0